[Event "TCEC Season 13 - Division 4"]
[Site "http://tcec.chessdom.com"]
[Date "2018.08.05"]
[Round "7.3"]
[White "Senpai 2.0"]
[Black "DeusX 1.0"]
[Result "1/2-1/2"]
[ECO "A15"]
[WhiteElo "3062"]
[BlackElo "3200"]
[PlyCount "295"]
[EventDate "2018.??.??"]
[TimeControl "1800+10"]

{WhiteEngineOptions: Protocol=uci; Hash=16384; Threads=16; OwnBook=false; Ponder=false;, BlackEngineOptions: Protocol=uci;} 1. Nf3 {book} Nf6 {book} 2. c4 {book} c5 {book} 3. e3 {[%eval 18,27] [%emt 0:00:42]} g6 {[%eval 17,4] [%emt 0:00:50]} 4. d4 {[%eval 50,26] [%emt 0:00:28]} cxd4 {[%eval 12,5] [%emt 0:00:46]} 5. exd4 {[%eval 38,25] [%emt 0:00:21]} d5 {[%eval 6,5] [%emt 0:00:32]} 6. cxd5 {[%eval 40,26] [%emt 0:00:46]} Nxd5 {[%eval 5,5] [%emt 0:00:34]} 7. Qb3 {[%eval 42,28] [%emt 0:00:30]} Bg7 {[%eval 4,4] [%emt 0:00:38]} 8. Bc4 {[%eval 39,27] [%emt 0:00:32]} e6 {[%eval 4,5] [%emt 0:00:19]} 9. Bg5 {[%eval 30,26] [%emt 0:00:25]} Qb6 {[%eval 5,4] [%emt 0:00:16]} 10. Nc3 {[%eval 44,26] [%emt 0:00:29]} h6 {[%eval 4,4] [%emt 0:00:11]} 11. Bd2 {[%eval 35,27] [%emt 0:00:33]} Ne7 {[%eval 3,4] [%emt 0:00:15]} 12. Qxb6 {[%eval 39,24] [%emt 0:00:23]} axb6 {[%eval 6,5] [%emt 0:00:09]} 13. O-O {[%eval 26,27] [%emt 0:01:17]} O-O {[%eval 6,4] [%emt 0:00:47]} 14. Rfd1 {[%eval 14,29] [%emt 0:01:18]} Bd7 {[%eval 8,4] [%emt 0:00:31]} 15. Be3 {[%eval 0,29] [%emt 0:01:32]} Rc8 {[%eval 20,4] [%emt 0:00:53]} 16. Be2 {[%eval 0,29] [%emt 0:00:28]} Bc6 {[%eval 22,5] [%emt 0:01:05]} 17. a3 {[%eval 0,29] [%emt 0:00:28]} Rd8 {[%eval 28,4] [%emt 0:01:24]} 18. Rac1 {[%eval 16,27] [%emt 0:00:30]} Nd5 {[%eval 29,4] [%emt 0:00:44]} 19. h3 {[%eval 0,28] [%emt 0:01:04]} Nxc3 {[%eval 29,3] [%emt 0:00:48]} 20. Rxc3 {[%eval 0,34] [%emt 0:00:37]} Nd7 {[%eval 27,4] [%emt 0:00:24]} 21. Rdc1 {[%eval 0,36] [%emt 0:00:42]} Nf6 {[%eval 30,4] [%emt 0:00:48]} 22. Rb3 {[%eval 0,37] [%emt 0:00:49]} Nd5 {[%eval 29,4] [%emt 0:00:22]} 23. Bc4 {[%eval 0,38] [%emt 0:00:43]} g5 {[%eval 45,4] [%emt 0:00:41]} 24. Bxd5 {[%eval 0,29] [%emt 0:00:37]} Rxd5 {[%eval 51,5] [%emt 0:00:21]} 25. Rxb6 {[%eval 9,30] [%emt 0:00:44]} f5 {[%eval 53,4] [%emt 0:00:13]} 26. Ne5 {[%eval 9,30] [%emt 0:00:32]} Bxe5 {[%eval 61,5] [%emt 0:00:56]} 27. dxe5 {[%eval 11,32] [%emt 0:00:39]} Rxe5 {[%eval 63,4] [%emt 0:00:25]} 28. Bc5 {[%eval 11,34] [%emt 0:00:50]} Kf7 {[%eval 70,3] [%emt 0:00:45]} 29. b4 {[%eval 10,33] [%emt 0:01:11]} Re2 {[%eval 72,5] [%emt 0:00:23]} 30. b5 {[%eval 0,33] [%emt 0:00:33]} Bd5 {[%eval 71,5] [%emt 0:00:11]} 31. Rd6 {[%eval 0,34] [%emt 0:00:34]} Rc8 {[%eval 85,3] [%emt 0:00:46]} 32. Rd7+ {[%eval 0,35] [%emt 0:00:43]} Kg6 {[%eval 87,4] [%emt 0:00:26]} 33. b6 {[%eval 0,36] [%emt 0:00:42]} h5 {[%eval 93,3] [%emt 0:00:57]} 34. Rc7 {[%eval 0,34] [%emt 0:00:30]} Rg8 {[%eval 93,3] [%emt 0:00:01]} 35. Ra1 {[%eval 0,31] [%emt 0:00:29]} f4 {[%eval -76,4] [%emt 0:00:53]} 36. Kf1 {[%eval 0,30] [%emt 0:00:34]} Bc4 {[%eval -87,4] [%emt 0:01:02]} 37. Kg1 {[%eval 0,36] [%emt 0:00:26]} Bd5 {[%eval -84,3] [%emt 0:00:14]} 38. Kf1 {[%eval 0,35] [%emt 0:00:25]} Rd2 {[%eval -87,4] [%emt 0:00:21]} 39. Re1 {[%eval 0,33] [%emt 0:00:36]} Ra8 {[%eval -84,4] [%emt 0:00:52]} 40. Be7 {[%eval 0,31] [%emt 0:00:28]} Ra6 {[%eval 99,3] [%emt 0:00:42]} 41. Re5 {[%eval 0,30] [%emt 0:00:25]} Rxb6 {[%eval 35,4] [%emt 0:00:41]} 42. Rxg5+ {[%eval 39,30] [%emt 0:00:34]} Kh6 {[%eval 32,5] [%emt 0:00:22]} 43. Rc1 {[%eval 36,32] [%emt 0:00:38]} Rc6 {[%eval 30,3] [%emt 0:00:13]} 44. Rxc6 {[%eval 48,28] [%emt 0:00:21]} Bxc6 {[%eval 30,4] [%emt 0:00:10]} 45. Re5 {[%eval 54,31] [%emt 0:00:28]} Kg6 {[%eval 29,3] [%emt 0:00:09]} 46. Rxe6+ {[%eval 55,32] [%emt 0:00:29]} Kf7 {[%eval 29,4] [%emt 0:00:21]} 47. Re1 {[%eval 55,34] [%emt 0:00:34]} f3 {[%eval 29,3] [%emt 0:00:35]} 48. gxf3 {[%eval 55,35] [%emt 0:00:26]} Bxf3 {[%eval 27,3] [%emt 0:00:27]} 49. Kg1 {[%eval 55,36] [%emt 0:00:32]} Rd1 {[%eval 23,4] [%emt 0:00:41]} 50. Rxd1 {[%eval 55,24] [%emt 0:00:30]} Bxd1 {[%eval 23,4] [%emt 0:00:26]} 51. Bd8 {[%eval 55,24] [%emt 0:00:35]} Kg6 {[%eval 22,4] [%emt 0:00:37]} 52. Kg2 {[%eval 59,26] [%emt 0:00:33]} Kf5 {[%eval 21,5] [%emt 0:00:28]} 53. Kg3 {[%eval 59,28] [%emt 0:00:29]} Ke4 {[%eval 20,5] [%emt 0:01:03]} 54. Bb6 {[%eval 59,31] [%emt 0:00:32]} Kf5 {[%eval 19,5] [%emt 0:00:33]} 55. f3 {[%eval 59,30] [%emt 0:00:32]} Ba4 {[%eval 18,5] [%emt 0:00:57]} 56. Bc7 {[%eval 61,25] [%emt 0:00:24]} Bc6 {[%eval 18,5] [%emt 0:00:58]} 57. h4 {[%eval 61,28] [%emt 0:00:23]} Ba4 {[%eval 16,5] [%emt 0:01:01]} 58. Kf2 {[%eval 61,25] [%emt 0:00:21]} Bb3 {[%eval 19,5] [%emt 0:00:59]} 59. Ke3 {[%eval 61,29] [%emt 0:00:24]} Bc4 {[%eval 25,5] [%emt 0:00:57]} 60. a4 {[%eval 71,26] [%emt 0:00:22]} Bb3 {[%eval 28,5] [%emt 0:00:49]} 61. a5 {[%eval 71,31] [%emt 0:00:23]} Bc2 {[%eval 31,5] [%emt 0:00:35]} 62. Bb6 {[%eval 71,31] [%emt 0:00:19]} Ke5 {[%eval 32,4] [%emt 0:00:51]} 63. Bd8 {[%eval 71,32] [%emt 0:00:22]} Bb1 {[%eval 32,4] [%emt 0:00:23]} 64. Bc7+ {[%eval 71,29] [%emt 0:00:21]} Kf5 {[%eval 30,5] [%emt 0:00:24]} 65. Bb6 {[%eval 71,33] [%emt 0:00:21]} Ke5 {[%eval 28,4] [%emt 0:00:46]} 66. Bd4+ {[%eval 71,30] [%emt 0:00:20]} Kf5 {[%eval 29,5] [%emt 0:00:23]} 67. Bc5 {[%eval 71,32] [%emt 0:00:20]} Bc2 {[%eval 27,4] [%emt 0:00:37]} 68. Bd6 {[%eval 71,32] [%emt 0:00:17]} Ba4 {[%eval 24,4] [%emt 0:00:42]} 69. Bh2 {[%eval 71,32] [%emt 0:00:19]} Ke6 {[%eval 24,5] [%emt 0:00:34]} 70. Bc7 {[%eval 71,32] [%emt 0:00:18]} Kd7 {[%eval 28,5] [%emt 0:00:29]} 71. Be5 {[%eval 71,31] [%emt 0:00:16]} Ke6 {[%eval 25,4] [%emt 0:00:06]} 72. Kf4 {[%eval 71,27] [%emt 0:00:15]} Bc6 {[%eval 27,4] [%emt 0:00:11]} 73. Bc7 {[%eval 71,32] [%emt 0:00:15]} Kd7 {[%eval 24,4] [%emt 0:00:13]} 74. Bb8 {[%eval 71,32] [%emt 0:00:14]} Ke6 {[%eval 21,4] [%emt 0:00:06]} 75. Ba7 {[%eval 71,33] [%emt 0:00:16]} Kf7 {[%eval 20,4] [%emt 0:00:15]} 76. Bc5 {[%eval 71,31] [%emt 0:00:14]} Bd5 {[%eval 21,5] [%emt 0:00:08]} 77. Bb6 {[%eval 71,32] [%emt 0:00:15]} Bc6 {[%eval 25,5] [%emt 0:00:10]} 78. Ke3 {[%eval 71,32] [%emt 0:00:15]} Ke6 {[%eval 29,4] [%emt 0:00:06]} 79. Bd8 {[%eval 71,26] [%emt 0:00:15]} Kd5 {[%eval 30,4] [%emt 0:00:06]} 80. Bf6 {[%eval 71,27] [%emt 0:00:12]} Ba4 {[%eval 29,5] [%emt 0:00:10]} 81. Kf4 {[%eval 72,27] [%emt 0:00:11]} Bd1 {[%eval 29,5] [%emt 0:00:06]} 82. Bg7 {[%eval 72,28] [%emt 0:00:11]} Be2 {[%eval 29,4] [%emt 0:00:09]} 83. Bf8 {[%eval 72,29] [%emt 0:00:12]} Bd1 {[%eval 26,5] [%emt 0:00:10]} 84. Bb4 {[%eval 72,30] [%emt 0:00:14]} Ke6 {[%eval 25,5] [%emt 0:00:18]} 85. Bc5 {[%eval 72,29] [%emt 0:00:13]} Kd5 {[%eval 24,5] [%emt 0:00:12]} 86. Bb6 {[%eval 72,28] [%emt 0:00:13]} Ke6 {[%eval 24,5] [%emt 0:00:06]} 87. Bd4 {[%eval 72,26] [%emt 0:00:11]} Kd5 {[%eval 24,5] [%emt 0:00:11]} 88. Ba7 {[%eval 72,29] [%emt 0:00:13]} Ke6 {[%eval 21,5] [%emt 0:00:07]} 89. Bg1 {[%eval 72,27] [%emt 0:00:10]} Kd5 {[%eval 21,4] [%emt 0:00:13]} 90. Bf2 {[%eval 72,28] [%emt 0:00:12]} Ke6 {[%eval 22,4] [%emt 0:00:11]} 91. Be3 {[%eval 72,29] [%emt 0:00:12]} Kd5 {[%eval 23,4] [%emt 0:00:04]} 92. Bd2 {[%eval 72,29] [%emt 0:00:12]} Be2 {[%eval 22,5] [%emt 0:00:11]} 93. Bc3 {[%eval 72,30] [%emt 0:00:09]} Bd1 {[%eval 22,5] [%emt 0:00:08]} 94. Ba1 {[%eval 72,29] [%emt 0:00:10]} Ke6 {[%eval 21,4] [%emt 0:00:08]} 95. Bh8 {[%eval 72,26] [%emt 0:00:12]} Kd5 {[%eval 22,4] [%emt 0:00:10]} 96. Bc3 {[%eval 72,30] [%emt 0:00:10]} Ke6 {[%eval 21,4] [%emt 0:00:14]} 97. Bd2 {[%eval 72,28] [%emt 0:00:12]} Kd5 {[%eval 21,5] [%emt 0:00:05]} 98. Be3 {[%eval 72,26] [%emt 0:00:09]} Be2 {[%eval 20,4] [%emt 0:00:08]} 99. Bb6 {[%eval 72,28] [%emt 0:00:19]} Bd1 {[%eval 21,5] [%emt 0:00:09]} 100. Ke3 {[%eval 71,27] [%emt 0:00:11]} Ke5 {[%eval 21,4] [%emt 0:00:14]} 101. Bc7+ {[%eval 71,26] [%emt 0:00:11]} Kd5 {[%eval 21,5] [%emt 0:00:07]} 102. Bb8 {[%eval 71,26] [%emt 0:00:11]} Ke6 {[%eval 21,4] [%emt 0:00:14]} 103. Ke4 {[%eval 71,27] [%emt 0:00:11]} Bc2+ {[%eval 18,4] [%emt 0:00:05]} 104. Kf4 {[%eval 71,25] [%emt 0:00:11]} Bd1 {[%eval 18,4] [%emt 0:00:06]} 105. Bc7 {[%eval 71,26] [%emt 0:00:11]} Kd7 {[%eval 18,5] [%emt 0:00:11]} 106. Be5 {[%eval 71,24] [%emt 0:00:09]} Ke6 {[%eval 17,5] [%emt 0:00:06]} 107. Bb8 {[%eval 71,28] [%emt 0:00:22]} Kf6 {[%eval 11,5] [%emt 0:00:10]} 108. Bc7 {[%eval 71,22] [%emt 0:00:24]} Bc2 {[%eval 15,4] [%emt 0:00:18]} 109. Bd8+ {[%eval 63,24] [%emt 0:00:09]} Kf7 {[%eval 8,6] [%emt 0:00:04]} 110. Kg5 {[%eval 72,27] [%emt 0:00:09]} Ke8 {[%eval 7,5] [%emt 0:00:05]} 111. a6 {[%eval 72,30] [%emt 0:00:09]} bxa6 {[%eval 7,3] [%emt 0:00:05]} 112. Bb6 {[%eval 72,31] [%emt 0:00:09]} Bd1 {[%eval 5,4] [%emt 0:00:11]} 113. f4 {[%eval 72,31] [%emt 0:00:07]} Kf7 {[%eval 4,5] [%emt 0:00:07]} 114. Bd8 {[%eval 72,32] [%emt 0:00:09]} Be2 {[%eval 4,5] [%emt 0:00:23]} 115. f5 {[%eval 72,32] [%emt 0:00:08]} Bd1 {[%eval 3,5] [%emt 0:00:09]} 116. Bb6 {[%eval 72,29] [%emt 0:00:08]} Be2 {[%eval 2,5] [%emt 0:00:11]} 117. Ba5 {[%eval 72,31] [%emt 0:00:09]} Bd1 {[%eval 2,5] [%emt 0:00:08]} 118. Bb4 {[%eval 72,33] [%emt 0:00:09]} Be2 {[%eval 1,5] [%emt 0:00:10]} 119. Bd2 {[%eval 72,33] [%emt 0:00:09]} Bd1 {[%eval 2,5] [%emt 0:00:10]} 120. Be1 {[%eval 72,33] [%emt 0:00:09]} Be2 {[%eval 1,5] [%emt 0:00:08]} 121. Bb4 {[%eval 72,29] [%emt 0:00:09]} Bd1 {[%eval 1,5] [%emt 0:00:08]} 122. Kf4 {[%eval 72,31] [%emt 0:00:08]} Be2 {[%eval 0,4] [%emt 0:00:11]} 123. Bc3 {[%eval 72,29] [%emt 0:00:10]} Bd1 {[%eval 0,4] [%emt 0:00:08]} 124. Ke4 {[%eval 72,33] [%emt 0:00:10]} Bc2+ {[%eval 0,4] [%emt 0:00:11]} 125. Ke5 {[%eval 72,32] [%emt 0:00:08]} Bd1 {[%eval 0,4] [%emt 0:00:09]} 126. Kf4 {[%eval 72,32] [%emt 0:00:08]} Bg4 {[%eval 1,5] [%emt 0:00:11]} 127. Ba5 {[%eval 72,31] [%emt 0:00:08]} Kf6 {[%eval 0,4] [%emt 0:00:07]} 128. Bd8+ {[%eval 72,30] [%emt 0:00:10]} Kf7 {[%eval 1,5] [%emt 0:00:07]} 129. Bc7 {[%eval 72,28] [%emt 0:00:08]} Kf6 {[%eval 0,5] [%emt 0:00:12]} 130. Be5+ {[%eval 16,23] [%emt 0:00:10]} Kf7 {[%eval 0,5] [%emt 0:00:07]} 131. Kg5 {[%eval 15,22] [%emt 0:00:10]} a5 {[%eval 1,5] [%emt 0:00:14]} 132. Bd6 {[%eval 14,22] [%emt 0:00:10]} a4 {[%eval 3,5] [%emt 0:00:10]} 133. Kf4 {[%eval 15,22] [%emt 0:00:09]} Kf6 {[%eval 2,4] [%emt 0:00:06]} 134. Be5+ {[%eval 15,23] [%emt 0:00:08]} Kf7 {[%eval 0,5] [%emt 0:00:06]} 135. Bb2 {[%eval 15,24] [%emt 0:00:08]} Bd1 {[%eval 1,4] [%emt 0:00:13]} 136. Ke4 {[%eval 15,24] [%emt 0:00:14]} Bg4 {[%eval 1,4] [%emt 0:00:12]} 137. Ke5 {[%eval 15,24] [%emt 0:00:08]} Bh3 {[%eval 0,5] [%emt 0:00:08]} 138. Ba3 {[%eval 15,24] [%emt 0:00:09]} Bg4 {[%eval 1,5] [%emt 0:00:07]} 139. Kf4 {[%eval 15,23] [%emt 0:00:10]} Kf6 {[%eval 0,4] [%emt 0:00:13]} 140. Bb2+ {[%eval 15,25] [%emt 0:00:10]} Kf7 {[%eval 1,5] [%emt 0:00:04]} 141. Kg5 {[%eval 7,22] [%emt 0:00:10]} Bd1 {[%eval 2,4] [%emt 0:00:14]} 142. Ba3 {[%eval 15,20] [%emt 0:00:09]} Be2 {[%eval 2,5] [%emt 0:00:10]} 143. Kf4 {[%eval 14,22] [%emt 0:00:13]} Kf6 {[%eval 0,4] [%emt 0:00:11]} 144. Bb2+ {[%eval 0,23] [%emt 0:00:09]} Kf7 {[%eval 1,5] [%emt 0:00:05]} 145. Ke5 {[%eval 0,24] [%emt 0:00:10]} Bd1 {[%eval 1,5] [%emt 0:00:12]} 146. Ba3 {[%eval 0,23] [%emt 0:00:10]} Be2 {[%eval 1,5] [%emt 0:00:12]} 147. Bc5 {[%eval 0,22] [%emt 0:00:11]} Bd1 {[%eval 1,5] [%emt 0:00:08]} 148. Bb4 {[%eval 0,23] [%emt 0:00:15] termination reason: TCEC draw rule} 1/2-1/2

[Event "TCEC Season 13 - Division 4"]
[Site "http://tcec.chessdom.com"]
[Date "2018.08.07"]
[Round "16.4"]
[White "Chess22k 1.10"]
[Black "DeusX 1.0"]
[Result "0-1"]
[ECO "A15"]
[WhiteElo "3072"]
[BlackElo "3200"]
[PlyCount "121"]
[EventDate "2018.??.??"]
[TimeControl "1800+10"]

{WhiteEngineOptions: Protocol=uci; Hash=4096; Threads=16;, BlackEngineOptions: Protocol=uci;} 1. Nf3 {book} Nf6 {book} 2. c4 {book} c5 {book} 3. e3 {[%eval 19,26] [%emt 0:01:16]} g6 {[%eval 17,4] [%emt 0:00:50]} 4. Be2 {[%eval 24,24] [%emt 0:00:38]} Bg7 {[%eval 5,5] [%emt 0:01:27]} 5. Nc3 {[%eval 9,26] [%emt 0:01:15]} Nc6 {[%eval 2,5] [%emt 0:01:07]} 6. d4 {[%eval 12,28] [%emt 0:01:14]} cxd4 {[%eval 0,7] [%emt 0:00:42]} 7. exd4 {[%eval 1,28] [%emt 0:00:54]} d5 {[%eval 2,5] [%emt 0:00:26]} 8. O-O {[%eval 5,28] [%emt 0:01:12]} O-O {[%eval 4,5] [%emt 0:00:46]} 9. Re1 {[%eval 0,26] [%emt 0:00:19]} Bg4 {[%eval 34,4] [%emt 0:00:46]} 10. c5 {[%eval 10,27] [%emt 0:00:39]} e6 {[%eval 34,4] [%emt 0:00:35]} 11. Be3 {[%eval 4,27] [%emt 0:00:39]} Ne4 {[%eval 33,4] [%emt 0:00:21]} 12. h3 {[%eval 0,29] [%emt 0:00:55]} Bxf3 {[%eval 58,6] [%emt 0:00:46]} 13. Bxf3 {[%eval 39,28] [%emt 0:00:43]} f5 {[%eval 57,4] [%emt 0:00:16]} 14. Ne2 {[%eval 0,25] [%emt 0:00:48]} a5 {[%eval 55,3] [%emt 0:00:48]} 15. Rc1 {[%eval 8,23] [%emt 0:00:37]} Qh4 {[%eval 73,3] [%emt 0:01:00]} 16. g3 {[%eval 32,23] [%emt 0:00:45]} Qf6 {[%eval 76,4] [%emt 0:00:31]} 17. Bg2 {[%eval 20,26] [%emt 0:01:06]} Qf7 {[%eval 76,4] [%emt 0:00:21]} 18. Qc2 {[%eval 21,26] [%emt 0:01:12]} g5 {[%eval 83,3] [%emt 0:01:10]} 19. Rcd1 {[%eval 34,26] [%emt 0:00:41]} h6 {[%eval 83,3] [%emt 0:00:22]} 20. h4 {[%eval 42,25] [%emt 0:01:11]} gxh4 {[%eval 94,4] [%emt 0:01:04]} 21. gxh4 {[%eval 21,26] [%emt 0:00:47]} Rae8 {[%eval -94,4] [%emt 0:01:18]} 22. a3 {[%eval 0,24] [%emt 0:00:46]} Kh7 {[%eval -80,4] [%emt 0:00:45]} 23. f3 {[%eval 11,25] [%emt 0:00:40]} Nf6 {[%eval -77,4] [%emt 0:00:15]} 24. Kh2 {[%eval 21,27] [%emt 0:00:42]} Nh5 {[%eval -61,4] [%emt 0:00:42]} 25. Bf2 {[%eval 49,24] [%emt 0:00:26]} Ne7 {[%eval -33,4] [%emt 0:00:37]} 26. f4 {[%eval 45,27] [%emt 0:00:36]} Nf6 {[%eval -26,3] [%emt 0:00:23]} 27. Bf3 {[%eval 55,26] [%emt 0:00:30]} Ne4 {[%eval -24,4] [%emt 0:00:11]} 28. Rf1 {[%eval 53,28] [%emt 0:00:17]} Bf6 {[%eval -10,3] [%emt 0:00:33]} 29. h5 {[%eval 75,27] [%emt 0:00:50]} Rg8 {[%eval -194,3] [%emt 0:00:35]} 30. Nc3 {[%eval 93,27] [%emt 0:01:00]} Rg7 {[%eval -150,4] [%emt 0:00:44]} 31. Rg1 {[%eval -98,26] [%emt 0:00:47]} Reg8 {[%eval -142,4] [%emt 0:00:20]} 32. Rxg7+ {[%eval -98,26] [%emt 0:00:15]} Rxg7 {[%eval -142,4] [%emt 0:00:18]} 33. Rg1 {[%eval -98,29] [%emt 0:00:33]} Rxg1 {[%eval -169,4] [%emt 0:01:08]} 34. Bxg1 {[%eval -70,27] [%emt 0:00:33]} Qg7 {[%eval -148,3] [%emt 0:00:16]} 35. Ne2 {[%eval -70,27] [%emt 0:00:15]} Nc6 {[%eval -138,4] [%emt 0:00:14]} 36. Qd1 {[%eval -90,27] [%emt 0:00:32]} Bh4 {[%eval -127,3] [%emt 0:00:37]} 37. Bxe4 {[%eval -65,27] [%emt 0:00:35]} dxe4 {[%eval -119,4] [%emt 0:00:30]} 38. d5 {[%eval -60,28] [%emt 0:00:44]} Nd8 {[%eval -117,5] [%emt 0:00:15]} 39. d6 {[%eval -193,26] [%emt 0:00:41]} Qg4 {[%eval -205,3] [%emt 0:00:39]} 40. Qf1 {[%eval -2,27] [%emt 0:00:24]} Qxh5 {[%eval -400,3] [%emt 0:00:20]} 41. Kg2 {[%eval -175,25] [%emt 0:00:21]} Nc6 {[%eval -205,4] [%emt 0:00:25]} 42. Be3 {[%eval -13,24] [%emt 0:00:30]} Qg4+ {[%eval -367,3] [%emt 0:00:57]} 43. Kh2 {[%eval -187,26] [%emt 0:00:24]} a4 {[%eval -349,4] [%emt 0:00:32]} 44. Qg2 {[%eval -130,26] [%emt 0:00:34]} Qxg2+ {[%eval -755,4] [%emt 0:00:36]} 45. Kxg2 {[%eval -288,30] [%emt 0:00:32]} Bf6 {[%eval -724,4] [%emt 0:00:18]} 46. d7 {[%eval -275,29] [%emt 0:00:26]} Kg7 {[%eval -877,3] [%emt 0:00:24]} 47. Bd4 {[%eval -233,28] [%emt 0:00:29]} Kf7 {[%eval -878,4] [%emt 0:00:14]} 48. Bxf6 {[%eval -279,27] [%emt 0:00:16]} Kxf6 {[%eval -878,5] [%emt 0:00:06]} 49. Nc3 {[%eval -267,28] [%emt 0:00:11]} Ke7 {[%eval -875,6] [%emt 0:00:10]} 50. Nxa4 {[%eval -252,28] [%emt 0:00:24]} Kxd7 {[%eval -865,4] [%emt 0:00:14]} 51. Nb6+ {[%eval -250,28] [%emt 0:00:19]} Kc7 {[%eval -842,4] [%emt 0:00:15]} 52. Nc4 {[%eval -223,29] [%emt 0:00:16]} Nd4 {[%eval -1342,4] [%emt 0:00:36]} 53. Ne5 {[%eval -386,29] [%emt 0:00:18]} Nb3 {[%eval -1447,4] [%emt 0:00:33]} 54. c6 {[%eval -382,30] [%emt 0:00:18]} b5 {[%eval -1775,5] [%emt 0:00:53]} 55. Nf7 {[%eval -326,26] [%emt 0:00:13]} h5 {[%eval -2187,4] [%emt 0:00:30]} 56. Ne5 {[%eval -421,23] [%emt 0:00:11]} Na5 {[%eval -2169,4] [%emt 0:00:58]} 57. Kf2 {[%eval -568,25] [%emt 0:00:23]} Nc4 {[%eval -2378,4] [%emt 0:00:41]} 58. Nf7 {[%eval -623,25] [%emt 0:00:11]} Kxc6 {[%eval -3339,4] [%emt 0:00:31]} 59. Ng5 {[%eval -760,25] [%emt 0:00:14]} Kd5 {[%eval -3544,6] [%emt 0:00:50]} 60. Ke2 {[%eval -981,25] [%emt 0:00:09]} Nxb2 {[%eval -4265,4] [%emt 0:00:44]} 61. Nh3 {[%eval -1393,24] [%emt 0:00:13] termination reason: TCEC win rule} 0-1